fUSD/lending_fUSD_20260130
["ID","MTS","AMOUNT","RATE_DAILY","PERIOD"]
[404032810,1769763032400,-483.06912156,0.00014772,2]
[404032811,1769763032410,-300.0,0.00014772,2]
[404032812,1769763032420,-237.47136038,0.00014773,2]
[404032813,1769763032432,-258.01147534,0.00014773,2]
[404032814,1769763032441,-164.84250391,0.00014773,2]
[404032815,1769763032451,-31.33706254,0.00014773,2]
[404032816,1769763032484,-2198.06912,0.00014773,2]
[404032817,1769763032493,-2694.18494696,0.00014786,2]
[404032828,1769763032574,-706.84338871,0.00014786,2]
[404032856,1769763032684,-286.41743328,0.00014786,2]
[404032865,1769763038418,-352.33047195,0.00014786,2]
[404032866,1769763038430,-2122.27062559,0.00014786,2]
[404032867,1769763038442,-351.55946302,0.00014786,2]
[404032872,1769763040439,-306.08680606,0.00014773,2]
[404032873,1769763040456,-783.96442654,0.00014786,2]
[404032874,1769763040723,-1147.04140008,0.00014786,2]
[404032875,1769763040742,-1045.28756763,0.00014786,2]
[404032878,1769763041276,-1.7e-07,0.00014786,2]
[404032887,1769763044001,-699.25908594,0.00014786,2]
[404032888,1769763044054,-1110.78417923,0.00014786,2]
[404032889,1769763044163,-2106.1993799,0.00014786,2]
[404032890,1769763044173,-170.2905794,0.00014816,2]
[404032891,1769763044182,-151.0,0.00014823,2]
[404032892,1769763044193,-57.40490876,0.00014825,2]
[404032893,1769763044204,-442.59509124,0.00014825,2]
[404032894,1769763044492,-213.27467732,0.00014825,2]
[404032895,1769763044510,-263.07827886,0.00014825,2]
[404032896,1769763044519,-299.75585909,0.00014825,2]
[404032897,1769763044528,-500.0,0.00014825,2]
[404032898,1769763044538,-207.20550462,0.00014825,2]
[404032899,1769763044547,-500.0,0.00014825,2]
[404032900,1769763044556,-500.0,0.00014825,2]
[404032901,1769763044565,-500.0,0.00014825,2]
[404032902,1769763044575,-500.0,0.00014825,2]
[404032903,1769763044584,-561.9191787,0.00014825,2]
[404032904,1769763044593,-150.0,0.00014825,2]
[404032905,1769763044602,-15405.93065344,0.00014826,2]
[404032906,1769763044636,-351.02840846,0.00014826,2]
[404032909,1769763637503,-500.03655605,0.00013816,2]
[404032915,1769763758668,5000.0,0.00021,30]
[404032916,1769763762461,5000.0,0.00021,30]
[404032917,1769763765268,5000.0,0.00021,30]
[404032918,1769763779872,4159.0,0.00021,30]
[404032919,1769763838278,250.0,0.000136,2]
[404032924,1769764231593,-192.39,0.00013744,2]
[404032925,1769764231604,-215.55344395,0.00013816,2]
[404032926,1769764231614,-166.66,0.00013995,2]
[404032927,1769764231624,-200.0,0.00014138,2]
[404032928,1769764231633,-1847.99,0.00014174,2]
[404032929,1769764231644,-150.0,0.00014195,2]
[404032930,1769764231654,-200.0,0.00014236,2]
[404032931,1769764231663,-166.66,0.0001429,2]
[404032932,1769764231672,-1200.0,0.00014378,2]
[404032933,1769764231682,-150.0,0.00014379,2]
[404032934,1769764231691,-150.0,0.00014379,2]
[404032936,1769764231701,-150.0,0.00014379,2]
[404032939,1769764231710,-150.0,0.00014379,2]
[404032941,1769764231720,-150.0,0.00014379,2]
[404032943,1769764231729,-150.0,0.00014379,2]
[404032945,1769764231739,-150.0,0.00014379,2]
[404032947,1769764231749,-150.0,0.00014379,2]
[404032949,1769764231758,-150.0,0.00014379,2]
[404032951,1769764231767,-150.0,0.00014379,2]
[404032953,1769764231776,-150.0,0.00014379,2]
[404032954,1769764231787,-150.0,0.00014379,2]
[404032955,1769764231797,-150.0,0.000144,2]
[404032956,1769764231806,-172.36,0.000144,2]
[404032957,1769764231816,-150.0,0.000144,2]
[404032958,1769764231825,-172.36,0.000144,2]
[404032959,1769764231836,-150.0,0.00014434,2]
[404032960,1769764231846,-200.0,0.00014434,2]
[404032961,1769764231856,-150.0,0.00014434,2]
[404032962,1769764231866,-150.0,0.00014434,2]
[404032963,1769764231875,-150.0,0.00014434,2]
[404032964,1769764231885,-150.0,0.00014434,2]
[404032965,1769764231894,-150.0,0.00014434,2]
[404032966,1769764231904,-155.570239,0.00014434,2]
[404032967,1769764231913,-172.36,0.00014478,2]
[404032968,1769764231923,-200.0,0.00014489,2]
[404032969,1769764231932,-200.0,0.00014489,2]
[404032970,1769764231941,-200.0,0.00014489,2]
[404032971,1769764231950,-200.0,0.00014489,2]
[404032972,1769764231960,-289.33252774,0.00014489,2]
[404032973,1769764231969,-176.35,0.000145,2]
[404032974,1769764231979,-150.0,0.00014543,2]
[404032975,1769764231989,-150.0,0.00014543,2]
[404032976,1769764231999,-26.3738003,0.00014543,2]
[404032977,1769764232011,-295.0908251,0.00014543,2]
[404032978,1769764232023,-214.5353746,0.00014543,2]
[404032979,1769764232033,-98.1646254,0.00014543,2]
[404032980,1769764232068,-401.8353746,0.00014543,2]
[404032981,1769764232077,-150.0,0.00014543,2]
[404032982,1769764232086,-150.0,0.00014543,2]
[404032983,1769764232096,-309.38,0.00014543,2]
[404032984,1769764232105,-150.0,0.00014578,2]
[404032985,1769764232115,-166.66,0.00014585,2]
[404032986,1769764232124,-13145.4049,0.00014586,2]
[404032987,1769764232134,-150.0,0.00014598,2]
[404032988,1769764232144,-150.0,0.00014598,2]
[404032989,1769764232153,-536.0,0.00014598,2]
[404032990,1769764232162,-500.0,0.00014598,2]
[404032991,1769764232172,-277.67813262,0.00014598,2]
[404032992,1769764232181,-150.0,0.00014598,2]
[404032993,1769764232191,-150.0,0.000146,2]
[404032994,1769764232200,-150.0,0.000146,2]
[404032995,1769764232210,-150.0,0.000146,2]
[404032996,1769764232219,-150.0,0.000146,2]
[404032997,1769764232229,-150.0,0.000146,2]
[404032998,1769764232239,-150.0,0.00014653,2]
[404032999,1769764232248,-150.0,0.00014653,2]
[404033000,1769764232259,-536.0,0.00014653,2]
[404033001,1769764232269,-500.0,0.00014653,2]
[404033002,1769764232279,-150.0,0.00014653,2]
[404033003,1769764232289,-151.0,0.00014677,2]
[404033004,1769764232298,-200.0,0.00014677,2]
[404033005,1769764232309,-163.34602007,0.00014677,2]
[404033006,1769764232319,-500.0,0.00014677,2]
[404033007,1769764232328,-500.0,0.00014677,2]
[404033008,1769764232338,-500.0,0.00014677,2]
[404033009,1769764232349,-500.0,0.00014677,2]
[404033010,1769764232359,-500.0,0.00014677,2]
[404033011,1769764232369,-500.0,0.00014677,2]
[404033012,1769764232379,-200.0,0.00014677,2]
[404033013,1769764232388,-500.0,0.00014677,2]
[404033014,1769764232398,-500.0,0.00014677,2]
[404033015,1769764232408,-500.0,0.00014677,2]
[404033016,1769764232417,-500.0,0.00014677,2]
[404033017,1769764232427,-500.0,0.00014677,2]
[404033018,1769764232436,-500.0,0.00014677,2]
[404033019,1769764232446,-500.0,0.00014677,2]
[404033020,1769764232456,-500.0,0.00014677,2]
[404033021,1769764232466,-500.0,0.00014677,2]
[404033022,1769764232480,-500.0,0.00014677,2]
[404033023,1769764232490,-474.18533009,0.00014677,2]
[404033024,1769764232499,-151.0,0.00014677,2]
[404033025,1769764232508,-151.0,0.00014677,2]
[404033026,1769764232519,-151.0,0.00014677,2]
[404033027,1769764232528,-151.0,0.00014677,2]
[404033028,1769764232538,-151.0,0.00014677,2]
[404033029,1769764232550,-151.0,0.00014677,2]
[404033030,1769764232560,-151.0,0.00014677,2]
[404033031,1769764232569,-151.0,0.00014677,2]
[404033032,1769764232579,-151.0,0.00014677,2]
[404033033,1769764232589,-151.0,0.00014677,2]
[404033034,1769764232599,-151.0,0.00014677,2]
[404033035,1769764232608,-151.0,0.00014677,2]
[404033036,1769764232619,-151.0,0.00014677,2]
[404033037,1769764232629,-151.0,0.00014677,2]
[404033038,1769764232639,-151.0,0.00014677,2]
[404033039,1769764232649,-151.0,0.00014677,2]
[404033040,1769764232658,-151.0,0.00014677,2]
[404033041,1769764232668,-151.0,0.00014677,2]
[404033042,1769764232677,-151.0,0.00014677,2]
[404033043,1769764232687,-151.0,0.00014677,2]
[404033044,1769764232697,-151.0,0.00014677,2]
[404033045,1769764232707,-151.0,0.00014677,2]
[404033046,1769764232719,-151.0,0.00014677,2]
[404033047,1769764232729,-151.0,0.00014677,2]
[404033048,1769764232739,-151.0,0.00014677,2]
[404033049,1769764232749,-151.0,0.00014677,2]
[404033050,1769764232759,-151.0,0.00014677,2]
[404033051,1769764232769,-151.0,0.00014677,2]
[404033052,1769764232780,-151.0,0.00014677,2]
[404033053,1769764232791,-151.0,0.00014677,2]
[404033054,1769764232801,-297.90421389,0.00014677,2]
[404033055,1769764232812,-500.0,0.00014677,2]
[404033056,1769764232822,-234.01435829,0.00014677,2]
[404033057,1769764232832,-500.0,0.00014685,2]
[404033058,1769764232842,-172.36,0.000147,2]
[404033059,1769764232852,-150.0,0.000147,2]
[404033060,1769764232862,-151.26,0.000147,2]
[404033061,1769764232872,-150.0,0.000147,2]
[404033062,1769764232882,-151.2,0.000147,2]
[404033063,1769764232892,-150.0,0.000147,2]
[404033064,1769764232902,-150.0,0.000147,2]
[404033065,1769764232912,-150.0,0.000147,2]
[404033066,1769764232923,-150.0,0.000147,2]
[404033067,1769764232933,-151.61,0.000147,2]
[404033068,1769764232942,-150.0,0.000147,2]
[404033069,1769764232952,-150.0,0.000147,2]
[404033070,1769764232961,-344.72,0.000147,2]
[404033071,1769764232970,-150.0,0.00014707,2]
[404033072,1769764232980,-150.0,0.00014707,2]
[404033073,1769764232989,-536.0,0.00014707,2]
[404033074,1769764232998,-500.0,0.00014707,2]
[404033075,1769764233008,-150.0,0.00014707,2]
[404033076,1769764233017,-1000.0,0.00014726,2]
[404033077,1769764233027,-3865.6923109,0.0001476,2]
[404033078,1769764233036,-3484.7256883,0.0001476,2]
[404033079,1769764233045,-578.20924308,0.00014761,2]
[404033080,1769764233055,-721.12765535,0.00014761,2]
[404033081,1769764233065,-854.2589148,0.00014761,2]
[404033082,1769764233074,-322.6107,0.00014761,2]
[404033083,1769764233084,-209.40437684,0.00014761,2]
[404033084,1769764233094,-536.0,0.00014762,2]
[404033085,1769764233104,-1444.9338933,0.00014765,2]
[404033086,1769764233117,-150.0,0.000148,2]
[404033087,1769764233127,-172.36,0.000148,2]
[404033088,1769764233137,-150.0,0.000148,2]
[404033089,1769764233147,-172.36,0.000148,2]
[404033090,1769764233158,-150.0,0.000148,2]
[404033091,1769764233168,-500.0,0.00014811,2]
[404033092,1769764233178,-217.15233878,0.00014816,2]
[404033093,1769764233188,-536.0,0.00014817,2]
[404033094,1769764233197,-309.38,0.00014817,2]
[404033095,1769764233207,-151.0,0.00014817,2]
[404033096,1769764233217,-225.18697532,0.00014871,2]
[404033097,1769764233226,-536.0,0.00014872,2]
[404033098,1769764233236,-174.91,0.00014873,2]
[404033099,1769764233246,-166.66,0.00014879,2]
[404033100,1769764233256,-151.0,0.00014896,2]
[404033101,1769764233266,-233.51889341,0.00014926,2]
[404033102,1769764233275,-536.0,0.00014927,2]
[404033103,1769764233285,-536.0,0.00014981,2]
[404033104,1769764233295,-242.15909246,0.00014981,2]
[404033105,1769764233305,-2006.46556425,0.00015018,2]
[404033106,1769764233314,-512.0804313,0.00015025,2]
[404033107,1769764233324,-955.89913636,0.00015025,2]
[404033108,1769764233333,-926.47041239,0.00015025,2]
[404033109,1769764233343,-605.8732167,0.00015025,2]
[404033110,1769764233352,-536.0,0.00015036,2]
[404033111,1769764233362,-251.11897888,0.00015036,2]
[404033112,1769764233371,-151.0,0.00015071,2]
[404033113,1769764233380,-151.0,0.00015071,2]
[404033114,1769764233389,-536.0,0.00015091,2]
[404033115,1769764233399,-309.38,0.00015091,2]
[404033116,1769764233408,-260.4103811,0.00015091,2]
[404033117,1769764233418,-500.24,0.00015093,2]
[404033118,1769764233428,-150.0,0.000151,2]
[404033119,1769764233437,-256.32,0.000151,2]
[404033120,1769764233447,-172.36,0.000151,2]
[404033121,1769764233456,-150.0,0.000151,2]
[404033122,1769764233465,-250.0,0.00015118,2]
[404033123,1769764233479,-280.94414854,0.00015118,2]
[404033124,1769764233488,-300.0,0.00015118,2]
[404033125,1769764233497,-536.0,0.00015146,2]
[404033126,1769764233506,-270.0455652,0.00015146,2]
[404033127,1769764233516,-166.66,0.00015174,2]
[404033128,1769764233525,-150.0,0.000152,2]
[404033129,1769764233534,-536.0,0.00015201,2]
[404033130,1769764233544,-280.03725112,0.00015201,2]
[404033131,1769764233556,-504.0642492,0.00015225,2]
[404033132,1769764233565,-654.7529,0.00015226,2]
[404033133,1769764233574,-654.75289,0.00015226,2]
[404033134,1769764233584,-654.7529,0.00015226,2]
[404033135,1769764233593,-654.75289,0.00015226,2]
[404033136,1769764233602,-654.7529,0.00015226,2]
[404033137,1769764233611,-654.75289,0.00015226,2]
[404033138,1769764233903,-500.0,0.00015233,2]
[404033139,1769764233914,-536.0,0.00015255,2]
[404033140,1769764233924,-290.39862941,0.00015256,2]
[404033141,1769764233935,-300.0,0.000153,2]
[404033142,1769764233946,-150.0,0.000153,2]
[404033143,1769764233956,-885.86649465,0.00015309,2]
[404033144,1769764233965,-536.0,0.0001531,2]
[404033145,1769764233975,-301.1433787,0.00015311,2]
[404033146,1769764233984,-2006.46556422,0.00015338,2]
[404033147,1769764233994,-536.0,0.00015365,2]
[404033148,1769764234003,-309.38,0.00015365,2]
[404033149,1769764234013,-176.35,0.00015379,2]
[404033150,1769764234022,-151.18,0.00015414,2]
[404033151,1769764234033,-536.0,0.0001542,2]
[404033152,1769764234043,-166.66,0.00015468,2]
[404033153,1769764234053,-536.0,0.00015475,2]
[404033154,1769764234063,-151.0,0.00015475,2]
[404033155,1769764234073,-167.5,0.00015511,2]
[404033156,1769764234083,-536.0,0.00015529,2]
[404033157,1769764234094,-536.0,0.00015584,2]
[404033158,1769764234103,-159.99,0.00015612,2]
[404033159,1769764234112,-536.0,0.00015639,2]
[404033160,1769764234121,-309.41,0.00015639,2]
[404033161,1769764234130,-2006.46556422,0.00015658,2]
[404033162,1769764234139,-536.0,0.00015694,2]
[404033163,1769764234151,-232.6,0.00015743,7]
[404033164,1769764234160,-536.0,0.00015748,2]
[404033165,1769764234170,-546.79313593,0.00015803,2]
[404033166,1769764234179,-1680.0,0.00015816,2]
[404033167,1769764234189,-918.64355495,0.00015857,2]
[404033168,1769764234198,-168.0,0.0001588,2]
[404033169,1769764234207,-194.2,0.00015918,2]
[404033170,1769764234216,-159.99,0.00015927,2]
[404033171,1769764234225,-2006.46556422,0.00015979,2]
[404033172,1769764234235,-223.6899003,0.00016,2]
[404033173,1769764234244,-301.37,0.00016082,2]
[404033174,1769764234253,-9999.99,0.00016116,2]
[404033175,1769764234262,-3118.22,0.00016116,2]
[404033176,1769764234271,-334.5472959,0.0001613,2]
[404033177,1769764234281,-167.5,0.00016151,2]
[404033178,1769764234291,-1270.0,0.00016161,2]
[404033179,1769764234300,-6575.0,0.00016161,2]
[404033180,1769764234309,-2444.0,0.00016161,2]
[404033181,1769764234319,-168.0,0.0001619,2]
[404033182,1769764234328,-3184.0,0.00016235,2]
[404033183,1769764234338,-150.0,0.00016238,2]
[404033184,1769764234347,-150.0,0.00016238,2]
[404033185,1769764234356,-150.0,0.00016238,2]
[404033186,1769764234366,-150.0,0.00016238,2]
[404033187,1769764234375,-150.0,0.00016238,2]
[404033188,1769764234385,-159.99,0.00016243,2]
[404033189,1769764234394,-2006.46556422,0.00016299,2]
[404033190,1769764234404,-166.67,0.00016335,2]
[404033191,1769764234413,-622.46,0.00016356,2]
[404033192,1769764234422,-346.03,0.00016356,2]
[404033193,1769764234431,-180.11,0.00016356,2]
[404033194,1769764234440,-174.91,0.00016361,2]
[404033195,1769764234450,-500.0,0.00016373,2]
[404033196,1769764234459,-500.0,0.00016373,2]
[404033197,1769764234469,-500.0,0.00016373,2]
[404033198,1769764234481,-316.74242,0.00016373,2]
[404033199,1769764234491,-500.0,0.00016373,2]
[404033200,1769764234499,-163.0,0.000164,2]
[404033201,1769764234509,-163.39020399,0.00016405,2]
[404033202,1769764234523,-789.24316249,0.00016405,2]
[404033203,1769764234532,-1000.0,0.00016438,2]
[404033204,1769764234541,-300.0,0.00016443,2]
[404033205,1769764234551,-300.0,0.00016483,2]
[404033206,1769764234560,-2367.716,0.00016484,2]
[404033207,1769764234570,-177.021,0.00016484,2]
[404033208,1769764234579,-329.19,0.00016514,2]
[404033209,1769764234589,-194.2,0.00016515,2]
[404033210,1769764234598,-1000.0,0.00016538,2]
[404033211,1769764234607,-168.0,0.00016551,2]
[404033212,1769764234616,-300.0,0.00016554,2]
[404033213,1769764234626,-342.16934366,0.00016554,2]
[404033214,1769764234635,-150.0,0.00016555,2]
[404033215,1769764234644,-150.0,0.00016555,2]
[404033216,1769764234653,-150.0,0.00016555,2]
[404033217,1769764234663,-150.101,0.00016555,2]
[404033218,1769764234672,-150.0,0.00016555,2]
[404033219,1769764234681,-150.184,0.00016555,2]
[404033220,1769764234690,-150.0,0.00016555,2]
[404033221,1769764234699,-487.57416341,0.00016555,2]
[404033223,1769764237541,-796.55986639,0.00016161,2]
[404033224,1769764237556,-119.44013361,0.00016161,2]
[404033225,1769764237565,-846.42583659,0.00016555,2]
[404033226,1769764237574,-3479.0,0.00016555,2]
[404033227,1769764237583,-487.2860299,0.00016555,2]
[404033228,1769764237595,-128.7139701,0.00016555,2]
[404033229,1769764237604,-1065.523,0.00016555,2]
[404033230,1769764237613,-159.99,0.00016558,2]
[404033231,1769764237622,-1470.39728529,0.00016619,2]
[404033232,1769764237633,-536.06827893,0.00016619,2]
[404033233,1769764237643,-862.5525444,0.00016633,2]
[404033234,1769764237652,-2991.3146937,0.00016663,2]
[404033235,1769764237662,-1000.0,0.00016712,2]
[404033236,1769764237671,-166.51,0.00016712,2]
[404033237,1769764237680,-838.0,0.0001672,2]
[404033238,1769764237691,-167.5,0.00016791,2]
[404033239,1769764237700,-1000.0,0.00016921,2]
[404033240,1769764237709,-1000.0,0.00016921,2]
[404033241,1769764237718,-1000.0,0.00016921,2]
[404033242,1769764237727,-1016.45192786,0.00016921,2]
[404033243,1769764237737,-2006.46556422,0.00016939,2]
[404033244,1769764237746,-987.88080104,0.00016953,2]
[404033267,1769764238012,-1000.0,0.00016986,2]
[404033269,1769764238021,-247.0,0.00017,2]
[404033271,1769764238030,-1310.32141789,0.00017,2]
[404033285,1769764238186,-720.01455073,0.00017,2]
[404033361,1769764239594,-151.0,0.0001537,2]
[404033362,1769764239604,-972.42602351,0.00017,2]
[404033363,1769764239769,-972.15998328,0.00017,2]
[404033364,1769764239927,-2315.09651318,0.00017,2]
[404033377,1769764243228,-3163.88365613,0.00017,2]
[404033383,1769764243282,-7588.92766263,0.00017,2]
[404033386,1769764243338,-709.17,0.00017,2]
[404033387,1769764243349,-541.82394898,0.00017,2]
[404033416,1769764245613,-13291.63888743,0.00017,2]
[404033419,1769764245626,-569.3928096,0.00017,2]
[404033421,1769764245639,-32796.15411919,0.00017,2]
[404033423,1769764245649,-2535.0136084,0.00017,2]
[404033425,1769764245659,-250.0,0.00017,2]
[404033428,1769764245670,-192.4614873,0.00017051,2]
[404033429,1769764245679,-173.494276,0.00017051,2]
[404033431,1769764245689,-938.18,0.00017054,2]
[404033434,1769764245698,-925.27,0.00017054,2]
[404033436,1769764245708,-667.4525266,0.00017082,2]
[404033438,1769764245718,-752.1,0.00017094,2]
[404033440,1769764245728,-168.0,0.00017103,2]
[404033442,1769764245737,-194.2,0.00017112,2]
[404033444,1769764245747,-752.1,0.00017176,2]
[404033446,1769764245758,-168.0,0.00017208,2]
[404033448,1769764245767,-500.0,0.00017229,2]
[404033450,1769764245777,-166.67,0.00017233,2]
[404033451,1769764245786,-752.1,0.00017259,2]
[404033452,1769764245796,-2006.46556422,0.0001726,2]
[404033453,1769764245805,-1000.0,0.0001726,2]
[404033454,1769764245819,-164.74,0.0001731,2]
[404033455,1769764245829,-752.1,0.00017341,2]
[404033456,1769764245839,-227.37,0.00017345,2]
[404033457,1769764245849,-2832.0,0.0001736,2]
[404033458,1769764245859,-2351.0,0.00017397,2]
[404033459,1769764245868,-752.1,0.00017423,2]
[404033460,1769764245879,-167.5,0.00017431,2]
[404033461,1769764245889,-919.26716921,0.00017468,2]
[404033462,1769764245898,-346.92554585,0.00017499,2]
[404033463,1769764245908,-400.52933925,0.000175,2]
[404033464,1769764245918,-747.8093786,0.000175,2]
[404033465,1769764245928,-1024.43239068,0.00017501,2]
[404033466,1769764245937,-752.1,0.00017506,2]
[404033467,1769764245946,-1000.0,0.00017534,2]
[404033468,1769764245956,-2006.46556422,0.0001758,2]
[404033469,1769764245965,-752.1,0.00017588,2]
[404033470,1769764245975,-752.1,0.00017671,2]
[404033471,1769764245984,-164.8271429,0.00017686,2]
[404033472,1769764245995,-194.2,0.00017709,2]
[404033473,1769764246004,-166.44,0.00017721,2]
[404033474,1769764246014,-752.1,0.00017753,2]
[404033475,1769764246023,-1000.0,0.00017808,2]
[404033476,1769764246033,-250.0,0.00017808,5]
[404033477,1769764246042,-250.0,0.00017808,5]
[404033478,1769764246052,-250.0,0.00017808,5]
[404033479,1769764246062,-250.0,0.00017808,5]
[404033480,1769764246071,-250.0,0.00017808,5]
[404033481,1769764246081,-250.0,0.00017808,5]
[404033482,1769764246091,-250.0,0.00017808,5]
[404033484,1769764246101,-250.0,0.00017808,5]
[404033485,1769764246110,-250.0,0.00017808,5]
[404033486,1769764246121,-250.0,0.00017808,5]
[404033487,1769764246131,-250.0,0.00017808,5]
[404033488,1769764246140,-250.0,0.00017808,5]
[404033490,1769764246150,-250.0,0.00017808,5]
[404033491,1769764246165,-250.0,0.00017808,5]
[404033493,1769764246175,-250.0,0.00017808,5]
[404033494,1769764246187,-250.0,0.00017808,5]
[404033495,1769764246197,-250.0,0.00017808,5]
[404033496,1769764246208,-250.0,0.00017808,5]
[404033497,1769764246218,-250.0,0.00017808,5]
[404033498,1769764246228,-250.0,0.00017808,5]
[404033499,1769764246238,-250.0,0.00017808,5]
[404033500,1769764246250,-250.0,0.00017808,5]
[404033501,1769764246259,-250.0,0.00017808,5]
[404033502,1769764246270,-250.0,0.00017808,5]
[404033503,1769764246279,-250.0,0.00017808,5]
[404033504,1769764246289,-250.0,0.00017808,5]
[404033505,1769764246298,-250.0,0.00017808,5]
[404033506,1769764246308,-250.0,0.00017808,5]
[404033507,1769764246317,-250.0,0.00017808,5]
[404033508,1769764246327,-185.602916,0.00017808,5]
[404033509,1769764246336,-752.1,0.00017835,2]
[404033510,1769764246345,-174.91,0.00017848,2]
[404033511,1769764246355,-360.22,0.00017876,2]
[404033512,1769764246364,-180.11,0.00017876,2]
[404033513,1769764246374,-180.11,0.00017876,2]
[404033514,1769764246387,-180.11,0.00017876,2]
[404033515,1769764246397,-180.11,0.00017876,2]
[404033516,1769764246406,-180.11,0.00017876,2]
[404033517,1769764246415,-180.11,0.00017876,2]
[404033518,1769764246425,-180.11,0.00017876,2]
[404033519,1769764246435,-159.04249291,0.00017878,2]
[404033520,1769764246444,-267.82595532,0.00017899,2]
[404033521,1769764246454,-164.84250389,0.000179,2]
[404033522,1769764246464,-396.38626856,0.000179,2]
[404033523,1769764246478,-2006.46556422,0.000179,2]
[404033524,1769764246487,-401.4685056,0.000179,2]
[404033525,1769764246497,-165.52240046,0.000179,2]
[404033526,1769764246507,-180.35,0.00017907,2]
[404033527,1769764246518,-752.1,0.00017918,2]
[404033528,1769764246527,-500.0,0.00017973,2]
[404033529,1769764246538,-500.0,0.00017973,2]
[404033530,1769764246548,-154.23401738,0.0001799,7]
[404033531,1769764246558,-165.52,0.0001799,2]
[404033532,1769764246567,-25348.67246394,0.00017999,2]
[404033533,1769764246577,-7651.30295178,0.00017999,3]
[404033534,1769764246587,-270.3,0.00017999,3]
[404033535,1769764246599,-2362.36757256,0.00017999,3]
[404033536,1769764246609,-3980.69611864,0.00017999,3]
[404033537,1769764246618,-1163.95029875,0.00017999,3]
[404033538,1769764246629,-5305.54547569,0.00018,2]
[404033539,1769764246647,-4296.75088854,0.00018,2]
[404033540,1769764246660,-4472.34233975,0.00018,2]
[404033541,1769764246672,-4826.16286284,0.00018,2]
[404033542,1769764246683,-405.8537147,0.00018,2]
[404033543,1769764246729,-521.9457999,0.00018,2]
[404033544,1769764246758,-13259.25836996,0.00018,2]
[404033545,1769764246770,-11856.94146657,0.00018,2]
[404033546,1769764246907,-1270.02328596,0.00018,2]
[404033547,1769764246919,-5744.70450913,0.00018,2]
[404033549,1769765305732,98620.75892846,0.00015,3]
[404033573,1769765431938,-459.81,0.000145,2]
[404033574,1769765431947,-270.0,0.000145,2]
[404033575,1769765431956,-1200.0,0.00014686,2]
[404033576,1769765431966,-1000.0,0.00014687,2]
[404033577,1769765431975,-1000.0,0.00014687,2]
[404033578,1769765431984,-416.62493436,0.00014687,2]
[404033579,1769765431995,-303.78006564,0.00014687,2]
[404033580,1769765432004,-322.6107,0.00014731,2]
[404033582,1769765432014,-209.40437684,0.00014731,2]
[404033584,1769765432023,-217.15233878,0.00014786,2]
[404033586,1769765432032,-225.18697532,0.00014841,2]
[404033587,1769765432041,-500.0,0.00014892,2]
[404033588,1769765432050,-233.51889341,0.00014896,2]
[404033589,1769765432059,-262.36,0.00014928,2]
[404033590,1769765432069,-242.15909246,0.00014951,2]
[404033591,1769765432078,-15586.81810365,0.00015,3]
[404033592,1769765432087,-251.11897888,0.00015006,2]
[404033593,1769765432096,-260.4103811,0.00015061,2]
[404033594,1769765432105,-270.0455652,0.00015116,2]
[404033595,1769765432115,-280.03725112,0.00015171,2]
[404033596,1769765432124,-290.39862941,0.00015226,2]
[404033597,1769765432133,-301.1433787,0.00015281,2]